fUSD/lending_fUSD_20250612
["ID","MTS","AMOUNT","RATE_DAILY","PERIOD"]
[365476770,1749696649369,-946.75,0.00019178,2]
[365476771,1749696649378,-2276.55,0.00019178,2]
[365476772,1749696649391,-470.0,0.00019178,2]
[365476773,1749696649408,-480.0,0.00019178,2]
[365476774,1749696649418,-490.0,0.00019178,2]
[365476775,1749696649427,-1135.31,0.00019178,2]
[365476776,1749696649436,-3066.58,0.00019178,2]
[365476777,1749696649445,-490.0,0.00019178,2]
[365476778,1749696649454,-303.06321817,0.00019178,2]
[365476779,1749696649465,-490.0,0.00019178,2]
[365476780,1749696649475,-1631.95,0.00019178,2]
[365476781,1749696649484,-1484.89,0.00019178,2]
[365476782,1749696649494,-1096.48,0.00019178,2]
[365476783,1749696649503,-500.0,0.00019178,2]
[365476784,1749696649512,-500.0,0.00019178,2]
[365476785,1749696649521,-500.0,0.00019178,2]
[365476786,1749696649530,-500.0,0.00019178,2]
[365476787,1749696649539,-500.0,0.00019178,2]
[365476788,1749696649549,-794.53,0.00019178,2]
[365476789,1749696649564,-1096.24,0.00019178,2]
[365476790,1749696649574,-246.985685,0.00019178,2]
[365476791,1749696649584,-246.985685,0.00019178,2]
[365476792,1749696649594,-246.985685,0.00019178,2]
[365476793,1749696649604,-478.94373919,0.00019178,2]
[365476794,1749696649614,-241.747191,0.00019178,2]
[365476795,1749696649624,-880.78,0.00019178,2]
[365476796,1749696649634,-241.747191,0.00019178,2]
[365476797,1749696649644,-490.0,0.00019178,2]
[365476798,1749696649655,-241.747191,0.00019178,2]
[365476799,1749696649664,-246.985685,0.00019178,2]
[365476800,1749696649674,-246.985685,0.00019178,2]
[365476801,1749696649684,-246.985685,0.00019178,2]
[365476802,1749696649693,-1459.23,0.00019178,2]
[365476803,1749696649703,-894.8,0.00019178,2]
[365476804,1749696649712,-2255.37,0.00019178,2]
[365476805,1749696649723,-490.0,0.00019178,2]
[365476806,1749696649733,-241.747191,0.00019178,2]
[365476807,1749696649742,-241.747191,0.00019178,2]
[365476808,1749696649752,-552.29,0.00019178,2]
[365476809,1749696649762,-241.747191,0.00019178,2]
[365476810,1749696649771,-2199.12,0.00019178,2]
[365476811,1749696649781,-945.75,0.00019178,2]
[365476812,1749696649790,-490.0,0.00019178,2]
[365476813,1749696649801,-490.0,0.00019178,2]
[365476814,1749696649810,-591.56,0.00019178,2]
[365476815,1749696649820,-490.0,0.00019178,2]
[365476816,1749696649830,-480.0,0.00019178,2]
[365476817,1749696649839,-1639.39,0.00019178,2]
[365476818,1749696649849,-495.58789343,0.00019178,2]
[365476819,1749696649858,-490.0,0.00019178,2]
[365476820,1749696649867,-490.0,0.00019178,2]
[365476821,1749696649876,-2544.13,0.00019178,2]
[365476822,1749696649885,-880.08,0.00019178,2]
[365476823,1749696649897,-1150.54,0.00019178,2]
[365476824,1749696649906,-1517.54,0.00019178,2]
[365476825,1749696649917,-490.0,0.00019178,2]
[365476826,1749696649927,-799.73,0.00019178,2]
[365476827,1749696649937,-490.0,0.00019178,2]
[365476828,1749696649947,-490.0,0.00019178,2]
[365476829,1749696649958,-1830.45,0.00019178,2]
[365476830,1749696649969,-490.0,0.00019178,2]
[365476831,1749696649978,-1730.53,0.00019178,2]
[365476832,1749696649988,-2468.96,0.00019178,2]
[365476833,1749696650002,-824.32,0.00019178,2]
[365476834,1749696650012,-619.38,0.00019178,2]
[365476835,1749696650022,-490.0,0.00019178,2]
[365476836,1749696650031,-899.77,0.00019178,2]
[365476837,1749696650040,-490.0,0.00019178,2]
[365476838,1749696650049,-1302.64,0.00019178,2]
[365476839,1749696650059,-490.0,0.00019178,2]
[365476840,1749696650068,-703.23,0.00019178,2]
[365476841,1749696650078,-151.0,0.00019178,2]
[365476842,1749696650087,-151.0,0.00019178,2]
[365476843,1749696650096,-151.0,0.00019178,2]
[365476844,1749696650106,-652.46,0.00019178,2]
[365476845,1749696650116,-151.0,0.00019178,2]
[365476846,1749696650125,-1245.85,0.00019178,2]
[365476847,1749696650135,-490.0,0.00019178,2]
[365476848,1749696650146,-237.41417537,0.00019178,2]
[365476849,1749696650157,-151.0,0.00019178,2]
[365476850,1749696650168,-151.0,0.00019178,2]
[365476851,1749696650178,-151.0,0.00019178,2]
[365476852,1749696650187,-151.0,0.00019178,2]
[365476853,1749696650196,-490.0,0.00019178,2]
[365476854,1749696650206,-490.0,0.00019178,2]
[365476855,1749696650217,-490.0,0.00019178,2]
[365476856,1749696650229,-6086.67,0.00019178,2]
[365476857,1749696650239,-4092.87,0.00019178,2]
[365476858,1749696650249,-490.0,0.00019178,2]
[365476859,1749696650258,-574.35,0.00019178,2]
[365476860,1749696650267,-1321.59,0.00019178,2]
[365476861,1749696650277,-490.0,0.00019178,2]
[365476862,1749696650286,-2349.94,0.00019178,2]
[365476863,1749696650296,-957.94,0.00019178,2]
[365476864,1749696650305,-605.23,0.00019178,2]
[365476865,1749696650315,-1091.76,0.00019178,2]
[365476866,1749696650325,-829.83,0.00019178,2]
[365476867,1749696650334,-490.0,0.00019178,2]
[365476868,1749696650344,-490.0,0.00019178,2]
[365476869,1749696650353,-3292.11,0.00019178,2]
[365476870,1749696650363,-500.0,0.00019178,2]
[365476871,1749696650372,-515.62,0.00019178,2]
[365476872,1749696650383,-907.55,0.00019178,2]
[365476873,1749696650401,-838.212955,0.00019178,2]
[365476874,1749696650410,-838.212955,0.00019178,2]
[365476875,1749696650420,-500.0,0.00019178,3]
[365476876,1749696650429,-2139.864371,0.00019178,2]
[365476877,1749696650439,-2139.864371,0.00019178,2]
[365476878,1749696650453,-2139.864371,0.00019178,2]
[365476879,1749696650463,-1117.14,0.00019178,2]
[365476880,1749696650473,-2296.75,0.00019178,2]
[365476881,1749696650483,-2296.75,0.00019178,2]
[365476882,1749696650492,-2296.75,0.00019178,2]
[365476883,1749696650501,-2139.864371,0.00019178,2]
[365476884,1749696650511,-490.0,0.00019178,2]
[365476885,1749696650520,-2296.75,0.00019178,2]
[365476886,1749696650531,-2139.864371,0.00019178,2]
[365476887,1749696650540,-2296.75,0.00019178,2]
[365476888,1749696650549,-4419.22,0.00019178,2]
[365476889,1749696650558,-2139.864371,0.00019178,2]
[365476890,1749696650568,-238.24836787,0.00019178,2]
[365476891,1749696650578,-490.0,0.00019178,2]
[365476892,1749696650587,-490.0,0.00019178,2]
[365476893,1749696650597,-838.212955,0.00019178,2]
[365476894,1749696650606,-838.212955,0.00019178,2]
[365476895,1749696650615,-150.0,0.00019178,2]
[365476896,1749696650625,-14071.37,0.00019178,2]
[365476897,1749696650636,-4355.5,0.00019178,2]
[365476898,1749696650645,-444.0,0.00019178,2]
[365476899,1749696650655,-1903.06,0.00019178,2]
[365476900,1749696650664,-2309.66,0.00019178,2]
[365476901,1749696650673,-490.0,0.00019178,2]
[365476902,1749696650683,-490.0,0.00019178,2]
[365476903,1749696650692,-490.0,0.00019178,2]
[365476904,1749696650702,-660.01,0.00019178,2]
[365476905,1749696650712,-834.61,0.00019178,2]
[365476906,1749696650724,-2162.0,0.00019178,2]
[365476907,1749696650734,-490.0,0.00019178,2]
[365476908,1749696650744,-151.0,0.00019178,2]
[365476909,1749696650754,-559.62781613,0.00019178,2]
[365476910,1749696650765,-151.0,0.00019178,2]
[365476911,1749696650776,-482.42342247,0.00019178,2]
[365476912,1749696650786,-505.21431851,0.00019178,2]
[365476913,1749696650796,-1775.57,0.00019178,2]
[365476914,1749696650807,-490.0,0.00019178,2]
[365476915,1749696650817,-490.0,0.00019178,2]
[365476916,1749696650827,-202.23020556,0.00019178,2]
[365476917,1749696650836,-576.12,0.00019178,2]
[365476918,1749696650846,-1008.22,0.00019178,2]
[365476919,1749696650857,-490.0,0.00019178,2]
[365476920,1749696650868,-599.51,0.00019178,2]
[365476921,1749696650879,-150.0,0.00019178,2]
[365476922,1749696650901,-490.0,0.00019178,2]
[365476923,1749696650915,-579.94,0.00019178,2]
[365476924,1749696650927,-991.25,0.00019178,2]
[365476925,1749696650942,-490.0,0.00019178,2]
[365476926,1749696650954,-2295.17,0.00019178,2]
[365476927,1749696650966,-3178.91,0.00019178,2]
[365476928,1749696650978,-18578.96,0.00019178,2]
[365476929,1749696650989,-1979.71,0.00019178,2]
[365476930,1749696651000,-304.29755538,0.00019178,2]
[365476931,1749696651011,-2790.85,0.00019178,2]
[365476932,1749696651022,-490.0,0.00019178,2]
[365476933,1749696651033,-490.0,0.00019178,2]
[365476934,1749696651044,-662.13,0.00019178,2]
[365476935,1749696651054,-879.09,0.00019178,2]
[365476936,1749696651065,-151.0,0.00019178,2]
[365476937,1749696651076,-152.535489,0.00019178,2]
[365476938,1749696651089,-758.62,0.00019178,2]
[365476939,1749696651100,-1041.17,0.00019178,2]
[365476940,1749696651111,-490.0,0.00019178,2]
[365476941,1749696651121,-501.70464595,0.00019178,2]
[365476942,1749696651134,-2375.34,0.00019178,2]
[365476943,1749696651145,-308.048,0.00019178,2]
[365476944,1749696651155,-1354.36,0.00019178,2]
[365476945,1749696651166,-308.048,0.00019178,2]
[365476946,1749696651176,-490.0,0.00019178,2]
[365476947,1749696651186,-308.048,0.00019178,2]
[365476948,1749696651197,-2960.76,0.00019178,2]
[365476949,1749696651208,-981.97,0.00019178,2]
[365476950,1749696651219,-480.51241494,0.00019178,2]
[365476951,1749696651230,-865.41,0.00019178,2]
[365476952,1749696651240,-308.048,0.00019178,2]
[365476953,1749696651251,-308.048,0.00019178,2]
[365476954,1749696651262,-308.048,0.00019178,2]
[365476955,1749696651272,-490.0,0.00019178,2]
[365476956,1749696651282,-5152.62,0.00019178,2]
[365476957,1749696651293,-480.0,0.00019178,2]
[365476958,1749696651303,-1216.77,0.00019178,2]
[365476959,1749696651314,-480.0,0.00019178,2]
[365476960,1749696651330,-3797.36,0.00019178,2]
[365476961,1749696651341,-490.0,0.00019178,2]
[365476962,1749696651352,-1830.69,0.00019178,2]
[365476963,1749696651363,-482.58560213,0.00019178,2]
[365476964,1749696651373,-205.85954715,0.00019178,2]
[365476965,1749696651384,-1123.44,0.00019178,2]
[365476966,1749696651398,-486.58788414,0.00019178,2]
[365476967,1749696651410,-160.83627906,0.00019178,2]
[365476968,1749696651421,-886.66,0.00019178,2]
[365476969,1749696651431,-497.30576364,0.00019178,2]
[365476970,1749696651444,-490.0,0.00019178,2]
[365476971,1749696651455,-4553.29,0.00019178,2]
[365476972,1749696651466,-490.0,0.00019178,2]
[365476973,1749696651480,-548.2266132,0.00019178,2]
[365476974,1749696651491,-737.81,0.00019178,2]
[365476975,1749696651502,-651.82,0.00019178,2]
[365476976,1749696651513,-710.52,0.00019178,2]
[365476977,1749696651524,-490.0,0.00019178,2]
[365476978,1749696651535,-861.19,0.00019178,2]
[365476979,1749696651547,-490.0,0.00019178,2]
[365476980,1749696651558,-474.0,0.00019178,2]
[365476981,1749696651572,-966.29,0.00019178,2]
[365476982,1749696651587,-490.0,0.00019178,2]
[365476983,1749696651600,-500.0,0.00019178,2]
[365476984,1749696651611,-500.0,0.00019178,2]
[365476985,1749696651622,-500.0,0.00019178,2]
[365476986,1749696651633,-532.8445546,0.00019178,2]
[365476987,1749696651645,-490.0,0.00019178,2]
[365476988,1749696651656,-2497.56,0.00019178,2]
[365476989,1749696651673,-490.01,0.00019178,2]
[365476990,1749696651684,-151.0,0.00019178,2]
[365476991,1749696651696,-494.87412327,0.00019178,2]
[365476992,1749696651707,-490.0,0.00019178,2]
[365476993,1749696651717,-1452.19,0.00019178,2]
[365476994,1749696651728,-447.43897518,0.00019178,2]
[365476995,1749696651738,-151.0,0.00019178,2]
[365476996,1749696651749,-729.82,0.00019178,2]
[365476997,1749696651759,-2073.386241,0.00019178,2]
[365476998,1749696651775,-2028.41,0.00019178,2]
[365476999,1749696651786,-164.499821,0.00019178,2]
[365477000,1749696651797,-491.52830652,0.00019178,2]
[365477001,1749696651808,-490.0,0.00019178,2]
[365477002,1749696651819,-490.0,0.00019178,2]
[365477003,1749696651831,-490.0,0.00019178,2]
[365477004,1749696651842,-151.0,0.00019178,2]
[365477005,1749696651854,-5061.42,0.00019178,2]
[365477006,1749696651865,-702.86,0.00019178,2]
[365477007,1749696651877,-490.0,0.00019178,2]
[365477008,1749696651888,-151.0,0.00019178,2]
[365477009,1749696651899,-490.0,0.00019178,2]
[365477010,1749696651910,-1221.51,0.00019178,2]
[365477011,1749696651922,-490.0,0.00019178,2]
[365477012,1749696651933,-559.30194254,0.00019178,2]
[365477013,1749696651943,-366.18371971,0.00019178,2]
[365477014,1749696651954,-441.7246849,0.00019178,2]
[365477015,1749696651965,-500.0,0.00019178,2]
[365477016,1749696651977,-1621.06,0.00019178,2]
[365477017,1749696651987,-196.44208,0.00019178,2]
[365477018,1749696651998,-712.1,0.00019178,2]
[365477019,1749696652010,-490.0,0.00019178,2]
[365477020,1749696652021,-504.67574752,0.00019178,2]
[365477021,1749696652032,-490.0,0.00019178,2]
[365477022,1749696652042,-490.0,0.00019178,2]
[365477023,1749696652053,-490.0,0.00019178,2]
[365477024,1749696652064,-3226.81,0.00019178,2]
[365477025,1749696652074,-490.0,0.00019178,2]
[365477026,1749696652086,-11438.56,0.00019178,2]
[365477027,1749696652096,-178.05174306,0.00019178,2]
[365477028,1749696652654,-311.94825694,0.00019178,2]
[365477029,1749696652665,-151.0,0.00019178,2]
[365477030,1749696652676,-171.48068244,0.00019178,2]
[365477031,1749696653323,-98.78097329,0.00019178,2]
[365477032,1749696653795,-261.3682149,0.00019178,2]
[365477033,1749696653807,-228.6317851,0.00019178,2]
[365477034,1749696653817,-490.0,0.00019178,2]
[365477035,1749696653826,-1039.54,0.00019178,2]
[365477036,1749696653836,-198.32441603,0.00019178,2]
[365477037,1749696653846,-151.0,0.00019178,2]
[365477038,1749696653855,-151.0,0.00019178,2]
[365477039,1749696653864,-151.0,0.00019178,2]
[365477040,1749696653874,-151.0,0.00019178,2]
[365477041,1749696653883,-176.37,0.00019178,2]
[365477042,1749696653893,-933.196957,0.00019187,2]
[365477043,1749696653902,-440.30584681,0.00019187,2]
[365477044,1749696654658,-490.0,0.00019178,2]
[365477045,1749696654668,-492.89111019,0.00019187,2]
[365477046,1749696654677,-151.0,0.00019187,2]
[365477047,1749696654687,-1384.098466,0.00019187,2]
[365477048,1749696654697,-917.61662675,0.00019187,2]
[365477049,1749696654711,-466.48183925,0.00019187,2]
[365477050,1749696654722,-151.0,0.00019187,2]
[365477051,1749696654732,-15.75095356,0.00019187,2]
[365477052,1749696654746,-135.24904644,0.00019187,2]
[365477053,1749696654756,-500.756171,0.00019187,2]
[365477054,1749696654766,-500.756171,0.00019187,2]
[365477055,1749696654776,-151.0,0.00019187,2]
[365477056,1749696654786,-215.524339,0.00019187,2]
[365477057,1749696654795,-215.524339,0.00019187,2]
[365477058,1749696654805,-269.719625,0.00019187,2]
[365477059,1749696654815,-549.40796,0.00019187,2]
[365477060,1749696654825,-269.719625,0.00019187,2]
[365477061,1749696654835,-549.40796,0.00019187,2]
[365477062,1749696654844,-151.0,0.00019187,2]
[365477063,1749696654853,-1971.51950876,0.00019187,2]
[365477064,1749696725872,2737.11489364,0.00038093,50]
[365477066,1749696790497,490.0000008,0.00038099,120]
[365477067,1749696799762,6379.7,0.00024655,120]
[365477068,1749696802347,240.96706835,0.00038099,50]
[365477070,1749696868706,1122257.63316443,0.00038099,60]
[365477071,1749696868736,729.42,0.00038099,120]
[365477072,1749696868978,729.42,0.00038099,120]
[365477073,1749696869236,729.42,0.00038099,120]
[365477074,1749696869487,729.42,0.00038099,120]
[365477075,1749696869770,729.42,0.00038099,120]
[365477077,1749696870012,729.42,0.00038099,120]
[365477078,1749696870259,729.42,0.00038099,120]
[365477079,1749696870507,729.42,0.00038099,120]
[365477080,1749696870756,729.42,0.00038099,120]
[365477081,1749696871052,729.42,0.00038099,120]
[365477082,1749696871275,729.42,0.00038099,120]
[365477083,1749696871529,729.42,0.00038099,120]
[365477084,1749696871763,729.42,0.00038099,120]
[365477085,1749696872403,729.42,0.00038099,120]
[365477086,1749696872558,729.42,0.00038099,120]
[365477087,1749696873167,729.42,0.00038099,120]
[365477088,1749696873267,729.42,0.00038099,120]
[365477089,1749696873332,729.42,0.00038099,120]
[365477090,1749696873446,729.42,0.00038099,120]
[365477091,1749696873565,729.42,0.00038099,120]
[365477092,1749696873815,729.42,0.00038099,120]
[365477093,1749696874062,729.42,0.00038099,120]
[365477094,1749696874327,729.42,0.00038099,120]
[365477095,1749696874570,729.42124937,0.00038099,120]
[365477097,1749696934217,-335.42815711,0.00018297,2]
[365477100,1749696948522,480.26155,0.00038099,120]
[365477101,1749696979964,950.0,0.00038099,50]
[365477103,1749697034904,490.0,0.00038099,120]
[365477106,1749697044926,-167.36,0.0001811,2]
[365477107,1749697047003,2000.0,0.00018102,120]
[365477110,1749697061907,-150.0,0.00018102,7]
[365477111,1749697061933,-18.06815711,0.00018102,2]
[365477113,1749697075686,3657.09395061,0.00012,2]
[365477114,1749697075709,6342.90604939,0.00012,2]
[365477116,1749697090633,227.71,0.00013699,2]
[365477122,1749697228541,460.47854119,0.00038095,120]
[365477123,1749697243547,513.26,0.00016173,2]
[365477124,1749697267153,-167.36,0.00018,2]
[365477126,1749697314109,1328.0,0.00038095,90]
[365477127,1749697321944,300.0,0.00017999,2]
[365477128,1749697331832,205.0,0.0001792,2]
[365477130,1749697441179,300.0,0.00017999,2]
[365477132,1749697459836,154.46874936,0.0001796,2]
[365477133,1749697465706,490.0,0.00038095,120]
[365477134,1749697472444,176.17857411,0.00017999,2]
[365477135,1749697474375,500.0,0.00017999,2]
[365477136,1749697474406,205.85380173,0.00017999,2]
[365477137,1749697474441,507.22627236,0.00017999,2]
[365477138,1749697474476,500.0,0.00017999,2]
[365477139,1749697474507,500.0,0.00017999,2]
[365477140,1749697474537,332.24491833,0.00017999,2]
[365477141,1749697474987,500.0,0.00017999,2]
[365477142,1749697475016,150.41535116,0.00017999,2]
[365477143,1749697475062,500.0,0.00017999,2]
[365477144,1749697475089,500.0,0.00017999,2]
[365477145,1749697475144,500.0,0.00017999,2]
[365477146,1749697475176,500.0,0.00017999,2]
[365477147,1749697475218,500.0,0.00017999,2]
[365477148,1749697475244,500.0,0.00017999,2]
[365477149,1749697475280,500.0,0.00017999,2]
[365477150,1749697475311,500.0,0.00017999,2]
[365477151,1749697475343,629.29191205,0.00017999,2]
[365477152,1749697475371,500.0,0.00017999,2]
[365477153,1749697475407,500.0,0.00017999,2]
[365477154,1749697475439,150.01060173,0.00017999,2]
[365477155,1749697475486,500.0,0.00017999,2]
[365477156,1749697475524,500.0,0.00017999,2]
[365477157,1749697475561,500.0,0.00017999,2]
[365477158,1749697475593,500.0,0.00017999,2]
[365477159,1749697475639,500.0,0.00017999,2]
[365477160,1749697483752,220.33161962,0.00038095,120]
[365477161,1749697501260,1200.0,0.00017999,2]
[365477162,1749697501291,300.0,0.00017999,2]
[365477164,1749697510900,152.40316727,0.00038104,50]
[365477165,1749697510949,631.0,0.00038104,120]
[365477166,1749697511435,397.25287,0.0001792,2]
[365477168,1749697549410,300.0,0.00017999,2]
[365477169,1749697561895,300.0,0.00017999,2]
[365477170,1749697625057,163.45876627,0.00017999,2]
[365477171,1749697626128,-1822.26820569,0.00018,2]
[365477172,1749697630104,-1509.82589917,0.00018,2]
[365477174,1749697642721,507.2894356,0.00017916,2]
[365477175,1749697657739,154.46874936,0.00017909,2]
[365477176,1749697691598,170.49396156,0.0001799,2]
[365477178,1749697801366,1200.0,0.00017999,2]
[365477179,1749697810658,859.83,0.0001799,2]
[365477180,1749697810879,859.83,0.0001799,2]
[365477181,1749697812782,308.16,0.0001799,2]
[365477183,1749697831592,-1328.43559685,0.00018,2]
[365477184,1749697831643,-676.07178682,0.00018,2]
[365477185,1749697831698,-6954.7656086,0.00018,2]
[365477186,1749697831710,-13096.27290287,0.00018,2]
[365477187,1749697831720,-160252.83255537,0.00018,2]
[365477188,1749697831732,-112246.03719432,0.00018,2]
[365477189,1749697831741,-169.05263322,0.00018,2]
[365477190,1749697831751,-169.05263322,0.00018,2]
[365477191,1749697831761,-300.0,0.00018004,2]
[365477192,1749697831770,-1000.0,0.00018009,2]
[365477193,1749697831780,-576.33,0.00018016,2]
[365477194,1749697831790,-300.0,0.00018037,2]
[365477195,1749697831800,-250.0,0.0001806,2]
[365477196,1749697831811,-647.93184289,0.00018102,2]
[365477197,1749697831820,-151.0,0.00018153,2]
[365477198,1749697831831,-1957.856,0.00018153,2]
[365477199,1749697831840,-207.4,0.00018153,2]
[365477200,1749697831850,-155.31316184,0.00018162,2]
[365477201,1749697831860,-2030.296672,0.00018208,2]
[365477202,1749697831869,-2105.41764886,0.00018263,2]
[365477203,1749697831879,-1687.62184289,0.00018297,2]
[365477204,1749697831889,-211.31579153,0.00018297,2]
[365477205,1749697831902,-4637.08831422,0.00018424,2]
[365477206,1749697831922,-432.32632991,0.00018424,2]
[365477207,1749697831943,-870.84,0.00018424,2]
[365477208,1749697831955,-454.40958204,0.00018424,2]
[365477209,1749697831967,-1029.29698763,0.00018424,2]
[365477210,1749697831998,-1104.21156385,0.00018424,2]
[365477228,1749697837652,-368.15148476,0.00018423,2]
[365477230,1749697837663,-193.68209469,0.00018423,2]
[365477232,1749697837673,-72.74043455,0.00018424,2]
[365477234,1749697837686,-284.41445159,0.00018424,2]
[365477237,1749697837699,-22217.64982131,0.00018424,2]
[365477239,1749697837710,-151.0,0.00018424,2]
[365477241,1749697837720,-513.26,0.00018437,2]
[365477243,1749697837730,-1593.52,0.000185,2]
[365477244,1749697837740,-796.98,0.000185,2]
[365477245,1749697837750,-796.98,0.000185,2]
[365477246,1749697837759,-796.98,0.000185,2]
[365477247,1749697837769,-150.0,0.000185,2]
[365477248,1749697837781,-150.0,0.000185,2]
[365477249,1749697837791,-150.0,0.000185,2]
[365477250,1749697837802,-150.0,0.000185,2]
[365477251,1749697837812,-205.0,0.00018538,2]
[365477252,1749697837822,-354.34,0.00018578,2]
[365477253,1749697837832,-150.0,0.00018578,2]
[365477254,1749697837843,-151.05,0.00018578,2]
[365477255,1749697837853,-796.98,0.000186,2]
[365477256,1749697837864,-375.0,0.0001863,2]
[365477257,1749697837874,-167.32,0.00018668,2]
[365477258,1749697837884,-379.0,0.00018751,2]
[365477259,1749697837895,-859.059147,0.00018803,2]
[365477260,1749697837909,-490.82336603,0.00018878,2]
[365477261,1749697837919,-163.2,0.000189,2]
[365477262,1749697837929,-1021.0,0.000189,2]
[365477263,1749697837938,-1916.64783881,0.000189,2]
[365477264,1749697837949,-206.71614988,0.000189,2]
[365477266,1749697837959,-206.71614975,0.00018934,2]
[365477268,1749697837969,-10318.69642058,0.00018952,2]
[365477269,1749697837980,-206.71614975,0.00018969,2]
[365477270,1749697837990,-278.83182246,0.00018976,2]
[365477271,1749697837999,-200.0,0.00018989,2]
[365477272,1749697838009,-200.0,0.00018991,2]
[365477273,1749697838020,-2887.8,0.00019,2]
[365477274,1749697838033,-2887.8,0.00019,2]
[365477275,1749697838043,-2887.8,0.00019,2]
[365477276,1749697838053,-2887.8,0.00019,2]
[365477277,1749697838063,-2887.8,0.00019,2]
[365477278,1749697838073,-250.0,0.00019,2]
[365477279,1749697838083,-1008.0,0.00019,2]
[365477280,1749697838093,-1916.64783879,0.00019,2]
[365477281,1749697838103,-305.32,0.00019,2]
[365477282,1749697838113,-499.34,0.00019,2]
[365477283,1749697838122,-301.79,0.00019,2]
[365477284,1749697838132,-303.72,0.00019001,2]
[365477285,1749697838142,-304.2,0.00019004,2]
[365477286,1749697838152,-301.25,0.00019004,2]
[365477287,1749697838163,-200.0,0.00019025,2]
[365477288,1749697838172,-500.0,0.00019029,2]
[365477289,1749697838182,-200.0,0.00019029,2]
[365477290,1749697838191,-500.0,0.00019033,2]
[365477291,1749697838201,-10318.69642058,0.00019033,2]
[365477292,1749697838211,-200.0,0.00019034,2]
[365477293,1749697838220,-163.6,0.0001904,2]
[365477294,1749697838229,-200.0,0.00019041,2]
[365477295,1749697838240,-165.77063069,0.00019041,2]
[365477296,1749697838250,-327.2,0.0001905,2]
[365477297,1749697838259,-796.98,0.00019061,2]
[365477298,1749697838269,-796.98,0.00019061,2]
[365477300,1749697838281,-908.63,0.00019061,2]
[365477302,1749697838292,-200.0,0.00019061,2]
[365477304,1749697838303,-300.35,0.00019062,2]
[365477305,1749697838313,-304.19,0.00019062,2]
[365477306,1749697838323,-3340.73,0.00019063,2]
[365477307,1749697838332,-807.0,0.00019063,2]
[365477308,1749697838342,-10318.69642058,0.00019073,2]
[365477309,1749697838354,-500.0,0.00019074,2]
[365477310,1749697838364,-965.4996,0.00019074,2]
[365477311,1749697838375,-6063.8114,0.00019074,2]
[365477312,1749697838384,-1000.0,0.00019074,2]
[365477313,1749697838394,-304.27,0.00019074,2]
[365477314,1749697838404,-303.71,0.00019074,2]
[365477315,1749697838413,-303.37,0.00019074,2]
[365477316,1749697838422,-278.83182246,0.00019075,2]
[365477317,1749697838432,-737.72457988,0.00019075,2]
[365477318,1749697838445,-262.27542012,0.00019075,2]
[365477319,1749697838454,-729.8248,0.00019075,2]
[365477320,1749697838464,-179.77475047,0.00019076,2]
[365477321,1749697838474,-152.99641784,0.00019078,2]
[365477322,1749697838483,-272.76742269,0.00019078,2]
[365477323,1749697838493,-1096.41345355,0.00019078,2]
[365477324,1749697838503,-300.11,0.00019078,2]
[365477325,1749697838513,-304.45,0.00019078,2]